bitfinex-derivatives/quotes_SOLF0:USTF0_20240818
["timestamp","ask_amount","ask_price","bid_price","bid_amount"]
[1723978212431,0.05160187,144.25,144.15,13.9801]
[1723978212432,6.36,144.26,144.15,13.9801]
[1723978212827,0.04391295,144.22,144.19,0.04620078]
[1723978213029,6.36,144.29,144.15,13.9801]
[1723978213225,0.04904351,144.22,144.19,0.05283508]
[1723978213425,0.04904351,144.22,144.21,3.4666]
[1723978213622,6.36,144.29,144.15,13.9801]
[1723978213828,0.04532341,144.23,144.2,0.05262458]
[1723978214024,9.8247,144.29,144.23,3.466]
[1723978214535,0.04402883,144.27,144.25,0.04653355]
[1723978214726,27.2,144.29,144.07,6.9396]
[1723978214929,2.6159,144.27,144.08,2.5112]
[1723978215130,3.4659,144.24,144.17,3.4674]
[1723978215336,8.9198,144.23,144.12,3.40980521]
[1723978215537,8.9198,144.23,144.08,2.5112]
[1723978215834,8.9198,144.23,144.18,3.4673]
[1723978216228,0.04517749,144.22,144.19,0.04904384]
[1723978217031,0.04517749,144.22,144.21,3.4666]
[1723978217432,5.0348,144.32,144.14,5.123]
[1723978217833,6.36,144.31,144.14,5.123]
[1723978218430,0.04738091,144.24,144.21,0.05013998]
[1723978218628,0.04651951,144.24,144.21,0.04916749]
[1723978221636,0.04651951,144.24,144.23,3.4661]
[1723978223339,6.36,144.29,144.26,3.4653]
[1723978223540,5.0348,144.32,144.22,3.44018824]
[1723978223846,5.0348,144.32,144.29,3.4646]
[1723978224229,6.36,144.33,144.29,3.4646]
[1723978224536,0.04747954,144.32,144.29,0.04701901]
[1723978224929,0.04747954,144.32,144.3,3.4643]
[1723978225831,0.04747954,144.32,144.29,0.04701901]
[1723978227743,0.04747954,144.32,144.29,3.51171901]
[1723978228643,0.04747954,144.32,144.29,0.04701901]
[1723978229341,0.04747954,144.32,144.3,3.4643]
[1723978231643,0.04747954,144.32,144.29,0.04701901]
[1723978231848,30.6234316,144.34,144.19,1.5591]
[1723978232143,3.4651,144.28,144.24,3.4657]
[1723978232446,6.36,144.27,144.19,1.5591]
[1723978232649,6.36,144.27,144.25,3.4656]
[1723978233134,6.41195363,144.27,144.25,3.4656]
[1723978234542,6.41195363,144.27,144.24,3.4658]
[1723978234744,27.25195363,144.27,144.22,0.05205097]
[1723978234939,1.5242,144.26,144.22,0.05205097]
[1723978235143,3.4661,144.24,144.22,0.05205097]
[1723978235348,1.5242,144.26,144.22,0.05205097]
[1723978235843,3.4657,144.25,144.22,3.51845097]
[1723978236048,1.5242,144.26,144.22,3.51845097]
[1723978236549,1.5242,144.26,144.23,3.4661]
[1723978236943,4.9896,144.26,144.22,3.51835097]
[1723978237449,4.9896,144.26,144.22,0.05205097]
[1723978237652,1.5242,144.26,144.23,3.4661]
[1723978237840,1.5242,144.26,144.22,0.05205097]
[1723978238151,1.5242,144.26,144.24,3.4659]
[1723978239152,4.9897,144.26,144.22,0.05205097]
[1723978239544,4.9897,144.26,144.22,3.51835097]
[1723978240152,3.4658,144.25,144.22,3.51835097]
[1723978240349,9.8258,144.25,144.22,3.51835097]
[1723978242854,6.36,144.25,144.23,3.4661]
[1723978243049,6.36,144.25,144.22,0.05205097]
[1723978243245,6.36,144.25,144.23,3.466]
[1723978244558,6.36,144.25,144.22,0.05205097]
[1723978245055,3.4664,144.23,144.19,3.467]
[1723978245260,31.11538749,144.25,144.19,3.467]
[1723978245651,31.11538749,144.25,144.14,4.4805]
[1723978245856,31.11538749,144.25,144.03,226.0]
[1723978245857,31.11538749,144.25,144.01,3.42412497]
[1723978246151,0.05111565,144.14,144.12,0.05250276]
[1723978246355,6.36,144.13,144.12,0.05250276]
[1723978246549,6.36,144.13,144.06,1.4448]
[1723978247257,9.8288,144.13,144.07,3.47]
[1723978247456,6.36,144.13,144.01,3.40476315]
[1723978247663,27.2,144.13,143.96,4.4129]
[1723978247850,3.4696,144.09,143.96,7.90260022]
[1723978248051,0.04722937,144.11,143.96,7.90260022]
[1723978248266,2.005,144.14,144.03,0.05014263]
[1723978248559,6.40730452,144.1,143.96,7.90260022]
[1723978248960,6.36,144.1,144.07,0.05014263]
[1723978249158,6.36,144.1,144.06,3.4702]
[1723978249566,0.04894526,144.09,144.07,0.04851619]
[1723978249765,1.4773,144.14,144.07,0.04851619]
[1723978249966,6.36,144.13,144.07,0.04851619]
[1723978250164,0.04935569,144.12,144.07,0.04851619]
[1723978250864,3.51815569,144.12,144.07,0.04851619]
[1723978251159,0.04935569,144.12,144.07,0.04851619]
[1723978251356,6.40935569,144.12,144.07,0.04851619]
[1723978252563,6.40935569,144.12,144.08,3.4697]
[1723978254165,0.04935569,144.12,144.07,0.04851619]
[1723978254763,3.4698,144.08,144.07,0.04851619]
[1723978254958,2.0268,144.12,144.0,3.4716]
[1723978255171,6.36,144.11,144.0,3.4716]
[1723978255667,6.36,144.11,144.01,3.4714]
[1723978255863,6.36,144.11,143.97,4.4911]
[1723978256068,0.05098165,144.07,144.03,3.4707]
[1723978256467,3.52098165,144.07,143.97,4.4911]
[1723978256669,0.05098165,144.07,144.02,3.4712]
[1723978256869,3.4699,144.08,144.02,3.4712]
[1723978257274,6.36,144.1,143.97,4.4911]
[1723978257665,6.36,144.1,144.0,3.4717]
[1723978257666,0.04702599,144.06,144.0,3.4717]
[1723978257973,0.04702599,144.06,143.97,4.4911]
[1723978258176,0.04702599,144.06,143.98,3.472]
[1723978258368,0.04666271,144.03,143.98,3.472]
[1723978259772,0.04666271,144.03,143.99,3.4719]
[1723978260172,0.04666271,144.03,144.0,3.4717]
[1723978260372,0.04666271,144.03,143.97,4.4911]
[1723978260770,0.04666271,144.03,144.0,3.4715]
[1723978260971,0.04666271,144.03,143.97,4.4911]
[1723978261873,0.04666271,144.03,144.0,3.4716]
[1723978262070,0.04666271,144.03,143.97,4.4911]
[1723978262276,0.04666271,144.03,143.98,3.4721]
[1723978262472,0.04666271,144.03,143.97,4.4911]
[1723978266082,0.04666271,144.03,144.0,3.4715]
[1723978267178,0.04666271,144.03,144.01,3.4714]
[1723978267482,0.04666271,144.03,143.97,4.4911]
[1723978267868,0.04666271,144.03,144.01,3.4712]
[1723978268270,0.04666271,144.03,144.0,3.4716]
[1723978268479,0.04666271,144.03,143.97,4.4911]
[1723978269582,0.04666271,144.03,144.01,3.4713]
[1723978270181,0.04666271,144.03,143.97,4.4911]
[1723978270378,0.04666271,144.03,143.86,3.51986155]
[1723978270580,3.4732,143.94,143.87,4.423]
[1723978270786,6.36,143.97,143.88,3.4744]
[1723978271084,0.05330911,143.92,143.87,4.423]
[1723978271281,6.36,143.96,143.87,4.423]
[1723978271478,0.04479176,143.91,143.87,4.423]
[1723978272082,0.04479176,143.91,143.87,7.8977]
[1723978272484,0.04479176,143.91,143.87,4.423]
[1723978273484,0.04479176,143.91,143.88,3.4744]
[1723978273985,0.04479176,143.91,143.87,4.423]
[1723978274177,0.04479176,143.91,143.87,2.9682]
[1723978274678,3.51869176,143.91,143.87,2.9682]
[1723978275873,0.04479176,143.91,143.87,2.9682]
[1723978277085,3.51869176,143.91,143.87,2.9682]
[1723978277285,0.04479176,143.91,143.87,2.9682]
[1723978278189,3.51879176,143.91,143.87,2.9682]
[1723978278790,0.04479176,143.91,143.87,2.9682]
[1723978279888,3.4743,143.9,143.87,1.4759]
[1723978280085,0.04479176,143.91,143.87,1.4759]
[1723978280282,0.04479176,143.91,143.83,1.464]
[1723978280491,0.04479176,143.91,143.84,1.4714]
[1723978281495,0.04479176,143.91,143.86,3.4751]
[1723978282100,3.51869176,143.91,143.85,3.4752]
[1723978282297,3.51869176,143.91,143.84,1.4714]
[1723978282598,0.04479176,143.91,143.87,3.4747]
[1723978282907,0.04479176,143.91,143.84,1.4714]
[1723978283694,0.04479176,143.91,143.85,6.36]
[1723978283901,0.04479176,143.91,143.9,3.4741]
[1723978291398,6.36,143.98,143.92,0.0464182]
[1723978291702,9.8323,143.98,143.84,7.8314]
[1723978291911,9.8323,143.98,143.92,3.4734]
[1723978292305,9.8323,143.98,143.94,0.0464182]
[1723978292511,0.04614382,143.96,143.94,0.0464182]
[1723978293607,0.04614382,143.96,143.94,3.5195182]
[1723978294609,0.04614382,143.96,143.95,3.4729]
[1723978301519,1.281,144.07,143.94,0.0464182]
[1723978301714,1.281,144.07,143.92,1.3701]
[1723978301916,3.4706,144.05,143.99,3.4717]
[1723978302317,3.4706,144.05,143.96,6.36]
[1723978302517,0.04935392,144.02,143.99,0.04872364]
[1723978303021,0.04935392,144.02,143.99,1.34982364]
[1723978303615,0.04935392,144.02,143.99,0.04872364]
[1723978304021,1.41695392,144.02,143.99,0.04872364]
[1723978304415,3.4717,144.0,143.99,0.04872364]
[1723978304711,0.04935392,144.02,143.99,0.04872364]
[1723978306518,0.04935392,144.02,144.01,3.4715]
[1723978312722,7.6575,144.1,144.0,1.3318]
[1723978313024,6.36,144.1,144.0,1.3318]
[1723978313219,6.36,144.14,144.0,1.3318]
[1723978313619,0.04595678,144.08,144.07,3.4698]
[1723978313828,3.4687,144.13,144.03,6.36]
[1723978314028,0.0467283,144.09,144.06,0.0512071]
[1723978314322,0.0467283,144.09,144.07,3.4699]
[1723978314927,0.0467283,144.09,144.06,3.5213071]
[1723978317126,0.0467283,144.09,144.06,3.55456968]
[1723978318022,0.0467283,144.09,144.08,3.4698]
[1723978324724,6.36,144.14,144.07,2.5187]
[1723978325034,6.36,144.2,144.07,2.5187]
[1723978325422,3.4676,144.17,144.12,3.4687]
[1723978325726,0.04705323,144.16,144.13,0.04536893]
[1723978326330,0.04705323,144.16,144.13,3.51376893]
[1723978327422,0.04705323,144.16,144.13,0.04536893]
[1723978327829,3.51495323,144.16,144.13,0.04536893]
[1723978328034,0.04705323,144.16,144.13,0.04536893]
[1723978330132,3.4681,144.15,144.13,0.04536893]
[1723978330534,0.04705323,144.16,144.13,0.04536893]
[1723978330838,3.4681,144.15,144.13,0.04536893]
[1723978331431,3.4683,144.14,144.13,0.04536893]
[1723978332234,3.4689,144.12,144.07,1.2514]
[1723978332436,3.4689,144.12,144.04,143.0]
[1723978332631,3.4689,144.12,144.08,3.4696]
[1723978333427,0.05223451,144.11,144.09,0.0527444]
[1723978334435,3.52133451,144.11,144.09,0.0527444]
[1723978334831,0.05223451,144.11,144.04,143.0]
[1723978335333,0.05223451,144.11,144.04,146.4706]
[1723978335729,3.4696,144.09,144.04,146.4706]
[1723978335929,3.4696,144.09,144.05,0.04753856]
[1723978335930,0.05153297,144.08,144.05,0.04753856]
[1723978336734,0.05153297,144.08,144.06,3.4703]
[1723978338334,0.05153297,144.08,144.05,0.04753856]
[1723978338936,3.4702,144.07,144.05,0.04753856]
[1723978340141,0.05153297,144.08,144.04,143.0]
[1723978340142,6.34,144.06,144.04,101.35610844]
[1723978340341,7.592,144.06,144.04,57.49490844]
[1723978340834,3.4705,144.05,144.04,57.49490844]
[1723978341837,9.8103,144.06,144.04,57.49490844]
[1723978342033,6.34,144.05,144.04,57.49490844]
[1723978342841,6.39153297,144.08,144.04,57.49490844]
[1723978343140,6.39153297,144.08,144.04,60.96560844]
[1723978343335,6.39153297,144.08,144.04,57.49490844]
[1723978343547,0.05153297,144.08,144.04,55.49490844]
[1723978345044,0.05153297,144.08,144.05,3.4704]
[1723978345843,0.05153297,144.08,144.04,55.49490844]
[1723978347844,3.4701,144.07,144.04,55.49490844]
[1723978348141,0.05153297,144.08,144.04,55.49490844]
[1723978349543,3.52133297,144.08,144.04,58.96550844]
[1723978349743,0.05153297,144.08,144.04,55.49490844]
[1723978350138,0.05153297,144.08,144.06,3.4702]
[1723978351239,0.05153297,144.08,144.07,3.47]
[1723978352242,6.34,144.12,144.09,3.4695]
[1723978352551,6.34,144.12,144.06,3.5908119]
[1723978352552,1.325,144.17,144.07,2.5674]
[1723978352742,6.34,144.14,144.07,2.5674]
[1723978353447,0.04522645,144.12,144.1,3.4691]
[1723978355940,0.04522645,144.12,144.09,0.04668278]
[1723978356847,3.51422645,144.12,144.09,0.04668278]
[1723978357248,0.04522645,144.12,144.09,0.04668278]
[1723978357654,3.4691,144.11,144.09,0.04668278]
[1723978357852,0.04522645,144.12,144.09,0.04668278]
[1723978358354,3.4692,144.11,144.09,0.04668278]
[1723978359253,3.4693,144.1,144.09,0.04668278]
[1723978368162,3.4691,144.11,144.09,0.04668278]
[1723978368964,0.04522645,144.12,144.09,0.04668278]
[1723978370061,0.04522645,144.12,144.09,3.51608278]
[1723978372159,0.04522645,144.12,144.09,0.04668278]
[1723978373170,3.51412645,144.12,144.09,0.04668278]
[1723978373367,0.04522645,144.12,144.09,0.04668278]
[1723978374059,3.4692,144.11,144.09,0.04668278]
[1723978378562,3.51412645,144.12,144.09,0.04668278]
[1723978379968,3.4691,144.11,144.09,0.04668278]
[1723978380472,3.4691,144.11,144.09,55.54159122]
[1723978386667,3.4693,144.1,144.09,55.54159122]
[1723978388775,9.14111114,144.1,144.09,55.54159122]
[1723978390869,9.14131734,144.1,144.09,55.54159122]
[1723978391472,9.14131385,144.1,144.09,55.54159122]
[1723978392674,3.4693,144.1,144.09,55.54159122]
[1723978393076,9.14125704,144.1,144.09,55.54159122]
[1723978394876,3.4693,144.1,144.09,55.54159122]
[1723978396781,9.14135316,144.1,144.09,55.54159122]
[1723978397083,9.14135316,144.1,144.09,55.42399122]
[1723978397780,18.72329889,144.1,144.09,55.42399122]
[1723978398280,9.14135316,144.1,144.09,55.42399122]
[1723978399682,9.7692,144.11,144.09,55.42399122]
[1723978399983,0.04522645,144.12,144.09,55.42399122]
[1723978400683,0.04522645,144.12,144.09,58.89349122]
[1723978401789,3.51412645,144.12,144.09,58.89349122]
[1723978404485,0.04522645,144.12,144.09,55.42399122]
[1723978405385,3.4692,144.11,144.09,55.42399122]
[1723978405983,3.4693,144.1,144.09,55.42399122]
[1723978406597,9.14120583,144.1,144.09,55.42399122]
[1723978406984,18.72151485,144.1,144.09,55.42399122]
[1723978407193,13.05246706,144.1,144.09,55.42399122]
[1723978407394,9.14169669,144.1,144.09,55.42399122]
[1723978409698,18.72486375,144.1,144.09,55.42399122]
[1723978411094,3.4693,144.1,144.09,55.42399122]
[1723978411291,3.4693,144.1,144.09,53.06875985]
[1723978411292,39.54642659,144.1,144.09,53.06875985]
[1723978411501,22.13289545,144.1,144.09,46.07072821]
[1723978411990,22.13495983,144.1,144.09,46.07072821]
[1723978412396,12.54956061,144.1,144.09,46.07072821]
[1723978415199,12.5382396,144.1,144.09,46.07072821]
[1723978415699,27.69576886,144.1,144.09,42.53942821]
[1723978415898,12.53816887,144.1,144.09,42.53942821]
[1723978416091,12.53816887,144.1,144.09,29.53942821]
[1723978416400,33.35816887,144.1,144.09,24.23272821]
[1723978416701,33.35816887,144.1,144.09,20.09892821]
[1723978417105,33.35816887,144.1,144.09,15.99942821]
[1723978418003,20.82,144.08,143.83,6.9513]
[1723978418193,6.3,144.14,143.98,68.92178046]
[1723978418194,20.82,144.06,143.98,68.92178046]
[1723978418392,20.82,144.04,143.98,66.92178046]
[1723978418601,20.82,144.02,143.98,66.92178046]
[1723978418802,11.96240001,144.01,143.98,66.92178046]
[1723978418993,9.2016809,144.0,143.98,66.92178046]
[1723978419198,3.4719,143.99,143.98,66.92178046]
[1723978425000,3.473,143.95,143.91,4.8227]
[1723978425198,3.473,143.95,143.91,69.349]
[1723978425403,0.04430758,143.94,143.91,69.349]
[1723978426008,0.04430758,143.94,143.92,3.4736]
[1723978426406,3.4734,143.93,143.92,68.0]
[1723978428303,0.04430758,143.94,143.92,68.0]
[1723978428807,3.4734,143.93,143.92,68.0]
[1723978430303,3.51750758,143.94,143.92,68.0]
[1723978430804,3.4734,143.93,143.92,68.0]
[1723978431902,9.7534,143.93,143.92,68.0]
[1723978433306,3.4734,143.93,143.92,68.0]
[1723978433608,9.79750758,143.94,143.92,68.0]
[1723978434104,3.51750758,143.94,143.92,68.0]
[1723978434304,9.7531,143.95,143.92,68.0]
[1723978435410,9.80458926,143.95,143.92,3.51780758]
[1723978435610,22.0713,144.05,143.92,0.04430758]
[1723978435811,7.07679484,144.04,143.92,68.0]
[1723978436113,6.28,144.04,143.92,68.0]
[1723978436406,3.4719,143.99,143.96,3.4725]
[1723978436612,1.2513,144.05,143.97,1.3087]
[1723978436613,6.28,144.01,143.97,1.3087]
[1723978436808,0.04581882,143.99,143.98,3.472]
[1723978437208,0.04581882,143.99,143.97,1.3087]
[1723978437410,6.28,144.01,143.97,69.3087]
[1723978438413,28.76,144.07,143.97,69.3087]
[1723978438414,6.28,144.03,143.97,69.3087]
[1723978438605,0.04497995,144.0,143.97,69.3087]
[1723978438806,3.4712,144.02,143.99,0.04988704]
[1723978439015,6.28,144.03,143.99,68.04988704]
[1723978439710,6.28,144.07,143.99,68.04988704]
[1723978439904,0.04474601,144.02,143.99,0.04988704]
[1723978440104,6.28,144.07,143.99,0.04988704]
[1723978440315,6.28,144.07,143.99,68.04988704]
[1723978440518,3.4699,144.08,144.04,3.4706]
[1723978440718,6.28,144.11,144.05,1.3132]
[1723978440926,6.28,144.11,144.05,69.3132]
[1723978441119,3.4701,144.07,144.05,69.3132]
[1723978441319,0.05197446,144.09,144.05,69.3132]
[1723978441519,3.4699,144.08,144.05,69.36297285]
[1723978441824,3.4699,144.08,144.05,72.83347285]
[1723978442424,3.4699,144.08,144.05,69.36297285]
[1723978443421,0.05197446,144.09,144.05,69.36297285]
[1723978443920,3.4702,144.07,144.05,69.36297285]
[1723978444724,3.4699,144.08,144.05,69.36297285]
[1723978444927,0.05197446,144.09,144.05,69.36297285]
[1723978445322,3.4701,144.07,144.05,69.36297285]
[1723978445724,3.4701,144.07,144.05,1.36297285]
[1723978446323,3.4703,144.06,144.05,1.36297285]
[1723978446519,3.4703,144.06,144.05,0.04977285]
[1723978451030,6.88615057,144.06,144.05,0.04977285]
[1723978451230,6.88615057,144.06,144.05,64.56877285]
[1723978451737,3.4703,144.06,144.05,64.56877285]
[1723978454631,3.4703,144.06,144.05,61.56877285]
[1723978456428,0.04504786,144.07,144.05,61.56877285]
[1723978457038,3.4703,144.06,144.05,61.56877285]
[1723978459138,0.04504786,144.07,144.05,61.56877285]
[1723978459541,0.04504786,144.07,144.05,62.83217285]
[1723978460831,0.04504786,144.07,144.05,1.2634]
[1723978462041,6.26,144.09,144.05,66.2634]
[1723978462233,6.26,144.13,144.05,66.2634]
[1723978463243,3.51535874,144.1,144.08,0.0501069]
[1723978463741,0.04585874,144.1,144.08,0.0501069]
[1723978465438,3.4695,144.09,144.08,0.0501069]
[1723978466631,3.4695,144.09,144.08,65.0501069]
[1723978466838,0.04585874,144.1,144.08,65.0501069]
[1723978470848,3.51515874,144.1,144.08,65.0501069]
[1723978472244,0.04585874,144.1,144.08,65.0501069]
[1723978472642,0.04585874,144.1,144.08,0.0501069]
[1723978473646,0.04585874,144.1,144.09,3.4695]
[1723978474948,0.04585874,144.1,144.08,3.5198069]
[1723978475141,0.04585874,144.1,144.08,0.0501069]
[1723978475943,3.469,144.12,144.1,64.95414126]
[1723978477047,0.046868,144.12,144.1,64.95414126]
[1723978477443,0.046868,144.12,144.1,68.42324126]
[1723978477845,0.046868,144.12,144.1,64.95414126]
[1723978478442,3.515768,144.12,144.1,64.95414126]
[1723978480252,3.469,144.11,144.1,64.95414126]
[1723978481154,9.709,144.11,144.1,64.95414126]
[1723978481544,10.9566,144.11,144.1,62.87694126]
[1723978482453,10.9566,144.11,144.1,58.72214126]
[1723978482647,10.9566,144.11,144.1,52.72214126]
[1723978490651,9.709,144.11,144.1,52.72214126]
[1723978492157,3.469,144.11,144.1,52.72214126]
[1723978493352,3.4695,144.09,144.08,0.0501069]
[1723978499253,3.4695,144.09,144.08,59.0501069]
[1723978501149,6.286868,144.12,144.08,59.0501069]
[1723978502760,3.4695,144.09,144.08,59.0501069]
[1723978504661,0.046868,144.12,144.08,59.0501069]
[1723978504853,11.90072488,144.11,144.08,59.0501069]
[1723978505060,9.7093,144.11,144.08,59.0501069]
[1723978505257,0.046868,144.12,144.11,52.76]
[1723978505459,11.94757204,144.12,144.11,52.76]
[1723978505860,9.755668,144.12,144.11,52.76]
[1723978506060,15.41714109,144.12,144.11,52.76]
[1723978509666,11.94834109,144.12,144.11,52.76]
[1723978509963,27.76,144.17,144.12,34.81165891]
[1723978510261,3.4685,144.14,144.12,34.81165891]
[1723978511168,3.4686,144.13,144.12,34.85858646]
[1723978511565,0.05086877,144.14,144.12,34.85858646]
[1723978512569,3.51926877,144.14,144.12,34.85858646]
[1723978514163,0.05086877,144.14,144.12,34.85858646]
[1723978519476,0.05086877,144.14,144.13,2.6533]
[1723978519675,0.05086877,144.14,144.13,6.1219]
[1723978519865,0.05086877,144.14,144.13,2.6533]
[1723978520272,3.468,144.16,144.14,22.76079014]
[1723978520571,6.2,144.19,144.14,22.76079014]
[1723978521275,0.05246452,144.18,144.15,0.04524905]
[1723978522166,3.4678,144.16,144.15,0.04524905]
[1723978523669,0.05246452,144.18,144.15,0.04524905]
[1723978524363,3.4677,144.17,144.15,0.04524905]
[1723978525375,3.4678,144.16,144.15,0.04524905]
[1723978525870,0.05246452,144.18,144.15,0.04524905]
[1723978526070,9.6671,144.19,144.18,22.70832562]
[1723978529371,9.6671,144.19,144.18,20.63192562]
[1723978530376,10.46265527,144.19,144.18,20.63192562]
[1723978530574,9.6671,144.19,144.18,20.63192562]
[1723978531976,0.05095474,144.2,144.19,7.96482562]
[1723978532172,6.25095474,144.2,144.19,7.96482562]
[1723978533779,9.71785474,144.2,144.19,7.96482562]
[1723978537987,3.4671,144.19,144.18,0.04558215]
[1723978543888,6.25095474,144.2,144.19,25.5329]
[1723978544686,9.71785474,144.2,144.19,25.5329]
[1723978549994,6.18,144.21,144.2,11.81504526]
[1723978551791,9.6466,144.21,144.2,11.81504526]
[1723978553995,9.6466,144.21,144.2,7.33794526]
[1723978554191,10.44201621,144.21,144.2,7.33794526]
[1723978554398,9.6466,144.21,144.2,7.33794526]
[1723978554594,30.4666,144.21,144.2,7.33794526]
[1723978554901,31.26209645,144.21,144.2,1.58774526]
[1723978555094,31.26209645,144.21,144.2,4.0]
[1723978555294,31.26209645,144.21,144.2,4.526e-05]
[1723978556394,10.44209645,144.21,144.2,4.526e-05]
[1723978556803,31.26214363,144.21,144.2,4.526e-05]
[1723978560607,10.44214363,144.21,144.2,4.526e-05]
[1723978560903,10.44203013,144.21,144.2,4.526e-05]
[1723978562001,4.26203013,144.21,144.2,4.526e-05]
[1723978562201,10.44203013,144.21,144.2,4.526e-05]
[1723978565109,9.6466,144.21,144.2,4.526e-05]
[1723978565402,10.44198381,144.21,144.2,4.526e-05]
[1723978566802,9.6466,144.21,144.2,4.526e-05]
[1723978582517,3.4666,144.21,144.2,4.526e-05]
[1723978582717,9.6266,144.21,144.2,4.526e-05]
[1723978585219,30.4466,144.21,144.2,4.526e-05]
[1723978585421,31.24212741,144.21,144.2,4.526e-05]
[1723978586121,3.4671,144.19,144.18,0.04558215]
[1723978591825,6.16,144.2,144.18,0.04558215]
[1723978592224,2.0062,144.2,144.18,0.04558215]
[1723978593130,0.04444818,144.22,144.18,0.04558215]
[1723978593932,3.51094818,144.22,144.18,0.04558215]
[1723978594936,0.04444818,144.22,144.18,0.04558215]
[1723978595323,0.04444818,144.22,144.18,3.51288215]
[1723978596837,6.16,144.23,144.18,3.51288215]
[1723978597232,6.16,144.23,144.18,0.04558215]
[1723978597541,3.4668,144.21,144.18,0.04558215]
[1723978597734,6.16,144.23,144.18,0.04558215]
[1723978597940,3.4671,144.19,144.18,0.04558215]
[1723978612355,3.467,144.2,144.18,0.04558215]
[1723978612763,3.4668,144.21,144.18,3.51298215]
[1723978613048,0.05000092,144.22,144.18,0.04558215]
[1723978613754,3.4669,144.2,144.18,0.04558215]
[1723978614751,3.4668,144.21,144.18,3.51288215]
[1723978615147,3.4668,144.21,144.18,0.04558215]
[1723978615651,3.4668,144.21,144.19,3.4671]
[1723978616553,3.51650092,144.22,144.19,3.4671]
[1723978618264,3.4668,144.21,144.18,3.51288215]
[1723978619158,3.4669,144.2,144.18,0.04558215]
[1723978622362,3.4669,144.2,144.18,3.51288215]
[1723978623261,3.4667,144.21,144.18,3.51288215]
[1723978624065,3.467,144.2,144.18,0.04558215]
[1723978624663,3.4668,144.21,144.18,0.04558215]
[1723978625164,3.4668,144.21,144.18,3.51278215]
[1723978629867,3.4668,144.21,144.19,3.4671]
[1723978632065,3.4668,144.21,144.18,3.51288215]
[1723978632267,3.467,144.2,144.18,0.04558215]
[1723978632464,0.05000092,144.22,144.18,0.04558215]
[1723978633663,3.467,144.2,144.18,0.04558215]
[1723978633866,0.05000092,144.22,144.18,0.04558215]
[1723978634066,3.467,144.2,144.18,0.04558215]
[1723978634671,3.4671,144.19,144.18,0.04558215]
[1723978642371,3.47194194,144.19,144.11,1.3342]
[1723978642576,24.7385,144.22,144.09,1.3269]
[1723978642776,6.1,144.18,144.09,1.3269]
[1723978642970,3.4687,144.13,144.09,4.7964]
[1723978643279,3.4687,144.13,144.09,3.4695]
[1723978643579,9.58546493,144.18,144.1,0.05223476]
[1723978643580,3.52128456,144.12,144.1,0.05223476]
[1723978643773,3.52114927,144.12,144.1,0.05223476]
[1723978645664,0.05234927,144.12,144.1,0.05223476]
[1723978647275,0.05234927,144.12,144.1,3.52143476]
[1723978649278,0.05234927,144.12,144.1,0.05223476]
[1723978649279,3.52114927,144.12,144.1,0.05223476]
[1723978649776,0.05234927,144.12,144.1,3.52153476]
[1723978651271,0.05234927,144.12,144.11,3.469]
[1723978651667,3.4679,144.16,144.1,0.05223476]
[1723978651873,1.2905,144.17,144.1,0.05223476]
[1723978652778,0.05104079,144.15,144.1,0.05223476]
[1723978653478,3.4684,144.14,144.11,3.4689]
[1723978656182,0.05104079,144.15,144.1,0.05223476]
[1723978657780,3.4687,144.13,144.1,0.05223476]
[1723978658785,3.4687,144.13,144.1,3.52133476]
[1723978660085,0.05104079,144.15,144.1,0.05223476]
[1723978660590,3.4686,144.13,144.1,3.52133476]
[1723978662288,3.4686,144.13,144.1,0.05223476]
[1723978662592,3.4686,144.13,144.11,3.469]
[1723978663488,3.4684,144.14,144.11,3.469]
[1723978664591,3.4686,144.13,144.11,3.469]
[1723978664990,3.469,144.11,144.1,0.05223476]
[1723978670898,0.04482353,144.12,144.0,49.62679239]
[1723978671097,2.6618,144.12,144.0,49.62679239]
[1723978671600,3.47,144.07,144.0,49.62679239]
[1723978672097,0.05186264,144.05,144.02,0.04677518]
[1723978672298,0.05186264,144.05,144.0,49.62679239]
[1723978672299,2.6618,144.12,144.0,49.62679239]
[1723978672502,0.04433785,144.05,144.02,0.04817994]
[1723978672701,3.4706,144.05,144.01,3.4714]
[1723978672902,3.52205814,144.05,144.02,0.05180501]
[1723978673199,0.05145814,144.05,144.02,0.05180501]